bitfinex-derivatives/quotes_ETHF0:USTF0_20250329
["timestamp","ask_amount","ask_price","bid_price","bid_amount"]
[1743239153015,3.95893,1885.5,1885.4,4.26909]
[1743239153510,2.8977,1885.5,1885.4,4.26909]
[1743239154715,3.95893,1885.5,1885.4,4.26909]
[1743239155406,2.49783,1885.5,1885.4,4.26909]
[1743239155807,2.49783,1885.5,1885.4,3.2078]
[1743239156717,2.49783,1885.5,1885.4,4.26909]
[1743239157516,1.4366,1885.5,1885.4,4.26909]
[1743239157819,2.49783,1885.5,1885.4,3.2078]
[1743239159219,2.49783,1885.5,1885.4,4.26909]
[1743239159411,1.4366,1885.5,1885.4,4.26909]
[1743239159913,2.49783,1885.5,1885.4,4.26909]
[1743239160220,2.49783,1885.5,1885.4,3.2078]
[1743239160613,2.49783,1885.5,1885.4,4.5476]
[1743239161016,3.97473,1885.5,1885.4,4.5476]
[1743239161514,1.4366,1885.5,1885.4,5.60889]
[1743239163121,2.49783,1885.5,1885.4,5.60889]
[1743239163422,1.4366,1885.5,1885.4,5.60889]
[1743239165920,2.49783,1885.5,1885.4,4.5476]
[1743239166121,3.95113,1885.5,1885.4,4.5476]
[1743239169530,5.87783,1885.5,1885.4,5.60889]
[1743239169830,5.87783,1885.5,1885.4,4.5476]
[1743239170022,4.8166,1885.5,1885.4,5.60889]
[1743239172337,4.8166,1885.5,1885.4,6.32799]
[1743239172838,4.078,1885.5,1885.4,6.32799]
[1743239173138,3.38,1885.5,1885.4,6.32799]
[1743239173436,1.4433,1885.7,1885.4,5.2667]
[1743239173630,4.8155,1885.8,1885.7,1.06112]
[1743239173839,1.4355,1885.8,1885.7,1.06112]
[1743239174040,4.8155,1885.8,1885.7,3.17012]
[1743239174241,5.87656,1885.8,1885.7,3.17012]
[1743239174442,4.8155,1885.8,1885.7,3.17012]
[1743239174845,14.48509161,1885.9,1885.8,1.06106]
[1743239175147,18.92607161,1886.0,1885.8,5.63806]
[1743239175532,18.92607161,1886.0,1885.9,1.3692]
[1743239176446,20.29817161,1886.0,1885.9,1.3692]
[1743239177042,20.29817161,1886.0,1885.9,2.43021]
[1743239177443,19.23719161,1886.0,1885.9,2.43021]
[1743239177639,14.48509161,1886.0,1885.9,2.43021]
[1743239177850,14.48509161,1886.0,1885.9,20.79730269]
[1743239178041,14.48509161,1886.1,1886.0,1.06095]
[1743239178344,14.48509161,1886.1,1886.0,15.16545]
[1743239178649,14.48509161,1886.1,1886.0,22.21737005]
[1743239179350,14.48509161,1886.1,1886.0,24.71737005]
[1743239181748,13.15656161,1886.1,1886.0,30.71537005]
[1743239181949,11.87309161,1886.1,1886.0,30.71537005]
[1743239182251,10.76871161,1886.1,1886.0,30.71537005]
[1743239182454,6.65957,1886.7,1886.5,1.06065]
[1743239182657,2.22,1886.7,1886.5,3.2078]
[1743239182849,0.7391,1886.7,1886.6,6.73980351]
[1743239183354,0.7391,1886.7,1886.6,8.49101351]
[1743239184150,4.0705,1886.8,1886.7,1.06056]
[1743239184347,4.0705,1886.8,1886.7,4.26836]
[1743239184548,5.131,1886.8,1886.7,3.2078]
[1743239184853,5.4282,1886.8,1886.7,4.26836]
[1743239185052,5.4282,1886.8,1886.7,3.2078]
[1743239185347,0.6915,1886.8,1886.7,4.26836]
[1743239187553,0.6915,1886.8,1886.7,3.2078]
[1743239187856,0.6915,1886.8,1886.7,4.26836]
[1743239188056,0.6915,1886.8,1886.7,3.2078]
[1743239188247,0.6915,1886.8,1886.7,4.26836]
[1743239188557,0.7188,1886.9,1886.7,3.2078]
[1743239188852,2.47506,1886.9,1886.7,4.26831]
[1743239189353,1.4046,1886.8,1886.7,4.26831]
[1743239189552,2.4651,1886.8,1886.7,3.2078]
[1743239190249,1.4046,1886.8,1886.7,4.26836]
[1743239191458,2.4651,1886.8,1886.7,3.2078]
[1743239192858,2.47508,1886.9,1886.7,4.26832]
[1743239193059,2.47508,1886.9,1886.7,4.94692]
[1743239194163,1.0605,1886.8,1886.7,3.2078]
[1743239194457,2.4985,1886.8,1886.7,3.2078]
[1743239198867,4.4385,1886.8,1886.7,3.2078]
[1743239199063,3.378,1886.8,1886.7,4.26836]
[1743239199367,4.4385,1886.8,1886.7,4.26836]
[1743239199960,3.378,1886.8,1886.7,4.26836]
[1743239200360,3.83568,1886.9,1886.7,4.26836]
[1743239200561,3.83568,1886.9,1886.8,1.3403]
[1743239201866,1.0605,1886.8,1886.7,3.2078]
[1743239202167,2.4405,1886.8,1886.7,3.2078]
[1743239203466,2.4405,1886.8,1886.7,4.5951]
[1743239205365,2.4405,1886.8,1886.7,5.65566]
[1743239205565,1.38,1886.8,1886.7,5.65566]
[1743239206068,5.85209,1886.9,1886.8,1.0605]
[1743239206268,5.85209,1886.9,1886.8,1.3873]
[1743239206662,4.7916,1886.9,1886.8,2.4478]
[1743239206863,4.7916,1886.9,1886.8,3.1357]
[1743239207261,5.85204,1886.9,1886.8,2.0752]
[1743239208077,4.7916,1886.9,1886.8,3.1357]
[1743239208266,5.85204,1886.9,1886.8,3.1357]
[1743239208665,4.7916,1886.9,1886.8,3.1357]
[1743239208866,5.85204,1886.9,1886.8,3.1357]
[1743239209075,4.7916,1886.9,1886.8,3.1357]
[1743239209380,5.85204,1886.9,1886.8,3.1357]
[1743239209767,4.7916,1886.9,1886.8,3.1357]
[1743239209967,3.377,1886.9,1886.8,3.1357]
[1743239210265,4.102,1887.0,1886.9,1.06044]
[1743239210467,4.102,1887.0,1886.9,2.45534]
[1743239210875,5.16239,1887.0,1886.9,2.45534]
[1743239211261,4.102,1887.0,1886.9,2.45534]
[1743239211467,3.377,1887.0,1886.9,2.45534]
[1743239211876,0.6951,1887.1,1887.0,1.06039]
[1743239212074,22.46495498,1887.6,1887.0,4.6027]
[1743239212276,1.75255,1887.3,1887.1,1.06031]
[1743239212472,1.75255,1887.3,1887.0,4.6027]
[1743239212473,1.75255,1887.3,1887.2,1.3949]
[1743239212979,1.06033,1887.1,1887.0,3.2078]
[1743239214270,1.06033,1887.1,1887.0,4.6285]
[1743239214584,3.377,1887.2,1887.0,5.68886]
[1743239214770,4.43727,1887.2,1887.1,1.4207]
[1743239217681,3.377,1887.2,1886.7,3.2078]
[1743239217879,1.06039,1887.0,1886.9,1.4324]
[1743239218277,1.74899,1887.0,1886.9,1.4324]
[1743239220279,1.0605,1886.8,1886.7,3.2078]
[1743239220479,4.4375,1886.8,1886.7,3.2078]
[1743239223484,4.4375,1886.8,1886.7,4.5733]
[1743239223786,1.0605,1886.8,1886.7,4.5733]
[1743239223981,4.4375,1886.8,1886.7,4.5733]
[1743239225681,1.06067,1886.5,1886.4,3.74615756]
[1743239225888,1.06067,1886.5,1886.4,4.48095756]
[1743239226180,1.06065,1886.6,1886.4,12.39527169]
[1743239226483,1.06067,1886.5,1886.4,12.39527169]
[1743239226880,1.06065,1886.6,1886.4,13.86037169]
[1743239227089,1.06065,1886.6,1886.4,12.39527169]
[1743239227287,1.06065,1886.6,1886.4,11.33455169]
[1743239227589,1.06065,1886.6,1886.4,12.39524169]
[1743239228090,1.06067,1886.5,1886.4,11.33455169]
[1743239230788,1.06067,1886.5,1886.4,3.74615756]
[1743239230996,2.50657,1886.5,1886.4,0.00795756]
[1743239233699,1.06095,1886.0,1885.9,3.9286]
[1743239234390,3.377,1886.1,1885.9,4.98961]
[1743239234596,3.377,1886.1,1885.9,5.70941]
[1743239234894,1.06095,1886.0,1885.9,4.6484]
[1743239235083,4.43792,1886.1,1885.9,5.70938]
[1743239235286,4.43792,1886.1,1886.0,1.06095]
[1743239235594,4.43792,1886.1,1885.9,5.70937]
[1743239236000,4.43793,1886.1,1885.9,5.70937]
[1743239236497,4.43793,1886.1,1885.9,6.23977]
[1743239237098,3.377,1886.1,1886.0,1.06095]
[1743239237398,3.377,1886.1,1886.0,7.99083642]
[1743239239898,3.377,1886.1,1886.0,6.92988642]
[1743239239899,4.43789,1886.1,1886.0,6.92988642]
[1743239240304,4.43789,1886.1,1886.0,7.99083642]
[1743239240701,4.43789,1886.1,1886.0,9.35333642]
[1743239241801,4.43789,1886.1,1886.0,12.56113642]
[1743239242099,4.43789,1886.1,1886.0,11.50018642]
[1743239242405,5.85399,1886.1,1886.0,1.3625]
[1743239242601,7.30409,1886.1,1886.0,1.3625]
[1743239242906,7.30409,1886.1,1886.0,4.5703]
[1743239243999,5.85399,1886.1,1886.0,4.5703]
[1743239247903,7.24989,1886.1,1886.0,1.3625]
[1743239249707,5.85399,1886.1,1886.0,1.3625]
[1743239249910,5.85399,1886.1,1886.0,4.5703]
[1743239250406,5.85399,1886.1,1886.0,1.3625]
[1743239251503,7.18959,1886.1,1886.0,1.3625]
[1743239252512,6.1287,1886.1,1885.8,0.00795756]
[1743239252712,2.65266,1885.8,1885.4,0.0922733]
[1743239252908,1.06134,1885.3,1885.2,1.70472367]
[1743239253114,3.378,1885.3,1884.9,3.7382]
[1743239253307,1.06151,1885.0,1884.9,3.7382]
[1743239253511,2.8744,1885.2,1885.0,1.06147]
[1743239253712,3.93581,1885.2,1885.0,1.06147]
[1743239253912,3.93582,1885.2,1885.0,1.74107]
[1743239255220,2.8744,1885.2,1885.0,0.6796]
[1743239255411,2.48543,1885.2,1885.0,0.6796]
[1743239255612,2.8098,1885.2,1885.0,1.74111]
[1743239255813,3.87122,1885.2,1885.0,1.74111]
[1743239256009,3.87122,1885.2,1885.1,1.3607]
[1743239258913,1.06142,1885.2,1885.1,1.3607]
[1743239259114,3.38595756,1885.3,1885.1,1.3607]
[1743239259413,4.44733756,1885.3,1885.1,1.3607]
[1743239259723,1.0614,1885.2,1885.1,1.3607]
[1743239263521,1.4532,1885.2,1884.9,0.00795756]
[1743239263725,1.75206,1885.1,1885.0,1.3758]
[1743239265617,1.06151,1885.0,1884.9,0.00795756]
[1743239265921,6.50271,1885.0,1884.9,1.45635756]
[1743239266522,6.50271,1885.0,1884.9,0.00795756]
[1743239268817,1.06178,1884.6,1884.4,1.2191]
[1743239269116,4.44179,1884.6,1884.4,1.2191]
[1743239269316,4.44179,1884.6,1884.5,10.70870759]
[1743239270126,4.44179,1884.6,1884.5,12.18150759]
[1743239272233,4.44179,1884.6,1884.5,11.45370759]
[1743239272432,5.18329,1884.6,1884.5,11.45370759]
[1743239273527,4.1215,1884.6,1884.5,11.45370759]
[1743239273729,5.18324,1884.6,1884.5,11.45370759]
[1743239276134,5.18324,1884.6,1884.5,8.24590759]
[1743239276432,5.18324,1884.6,1884.5,1.4728]
[1743239276934,1.06179,1884.5,1884.4,1.44985756]
[1743239277134,3.12719,1884.5,1884.4,1.44985756]
[1743239278822,1.06206,1884.1,1883.9,4.26991]
[1743239279124,1.06203,1884.1,1883.9,4.6523]
[1743239279324,1.06203,1884.1,1884.0,6.82926236]
[1743239280232,1.06203,1884.1,1884.0,8.23066236]
[1743239280433,1.06203,1884.1,1884.0,9.29274236]
[1743239281122,1.06203,1884.1,1884.0,8.23066236]
[1743239282029,1.06203,1884.1,1884.0,9.29274236]
[1743239282332,1.06203,1884.1,1884.0,8.23066236]
[1743239282836,3.88453,1884.1,1884.0,1.4014]
[1743239283536,3.88453,1884.1,1884.0,4.6092]
[1743239286336,4.45094756,1884.2,1884.0,5.67123]
[1743239286542,4.45094756,1884.2,1884.1,2.54222]
[1743239286837,4.45091756,1884.2,1884.1,1.4802]
[1743239287143,3.38895756,1884.2,1884.1,2.54222]
[1743239287641,4.45091756,1884.2,1884.1,2.54222]
[1743239288336,3.38895756,1884.2,1884.1,2.54222]
[1743239288639,3.38895756,1884.2,1884.1,9.38538753]
[1743239288640,0.00795756,1884.2,1884.1,9.38538753]
[1743239291531,0.00795756,1884.2,1884.1,12.59318753]
[1743239294044,1.4407,1884.7,1884.1,15.09318753]
[1743239294236,3.381,1884.6,1884.5,1.06175]
[1743239294437,4.44274,1884.6,1884.5,2.0566]
[1743239294741,3.381,1884.6,1884.5,3.84739]
[1743239295243,4.44274,1884.6,1884.5,2.7856]
[1743239295444,5.92164,1884.6,1884.5,2.7856]
[1743239295935,1.4789,1884.6,1884.5,3.84739]
[1743239296135,4.8599,1884.6,1884.5,3.84739]
[1743239296933,5.92164,1884.6,1884.5,2.7856]
[1743239297236,4.8599,1884.6,1884.5,3.84739]
[1743239298942,5.92164,1884.6,1884.5,1.3544]
[1743239299338,4.8599,1884.6,1884.2,3.2078]
[1743239299642,1.06185,1884.4,1884.3,1.4833]
[1743239299836,1.06185,1884.4,1884.3,8.35671578]
[1743239300038,1.80055,1884.4,1884.3,1.4833]
[1743239300240,1.06191,1884.3,1884.2,3.2078]
[1743239300439,1.06196,1884.2,1884.1,1.4833]
[1743239300835,2.1484,1884.3,1884.2,1.06196]
[1743239301145,3.381,1884.3,1884.2,1.06191]
[1743239301543,3.381,1884.3,1884.2,2.41621]
[1743239302140,4.44291,1884.3,1884.1,4.26978]
[1743239302335,1.4443,1884.2,1884.1,4.26978]
[1743239302544,1.06205,1884.1,1883.9,5.72046756]
[1743239302747,3.2272,1884.2,1884.0,1.06206]
[1743239303046,2.1518,1884.1,1884.0,1.06206]
[1743239303451,0.7209,1884.2,1884.1,1.06202]
[1743239303839,0.7209,1884.2,1884.1,4.26982]
[1743239304545,1.78286,1884.2,1884.1,3.2078]
[1743239304744,3.22666,1884.2,1884.1,3.2078]
[1743239305146,3.22666,1884.2,1884.1,1.06202]
[1743239305448,3.22666,1884.2,1884.1,4.26982]
[1743239305650,2.1647,1884.2,1884.1,4.26982]
[1743239307649,3.22666,1884.2,1884.1,3.2078]
[1743239308838,3.22666,1884.2,1884.0,1.06207]
[1743239309045,1.78286,1884.2,1884.1,3.2078]
[1743239309445,1.78286,1884.2,1884.0,1.06207]
[1743239309646,1.78286,1884.2,1884.1,4.26982]
[1743239309647,0.7209,1884.2,1884.1,4.26982]
[1743239313249,0.7209,1884.2,1884.1,4.7623008]
[1743239314557,0.7209,1884.2,1884.1,4.26982]
[1743239314758,0.7209,1884.2,1884.1,4.76230343]
[1743239315669,1.78286,1884.2,1884.1,4.76230343]
[1743239316551,0.7209,1884.2,1884.1,4.76230343]
[1743239316752,0.7209,1884.2,1884.1,4.76218959]
[1743239317754,1.78286,1884.2,1884.1,4.76218959]
[1743239317948,0.7209,1884.2,1884.1,4.76218959]
[1743239318749,15.19866814,1884.2,1884.1,4.76218959]
[1743239319258,16.26062814,1884.2,1884.1,4.76218959]
[1743239319454,16.26062814,1884.2,1884.1,1.55438959]
[1743239319961,16.26062814,1884.2,1884.1,0.49236959]
[1743239320652,17.61252814,1884.2,1884.1,1.83976901]
[1743239326162,17.61252814,1884.2,1884.1,0.49236901]
[1743239327264,18.33202814,1884.2,1884.1,0.49236901]
[1743239328656,1.06202,1884.1,1884.0,1.4533]
[1743239328856,2.43872,1884.1,1884.0,1.94604038]
[1743239330765,2.43872,1884.1,1884.0,1.946297]
[1743239331362,5.82072,1884.1,1884.0,1.946297]
[1743239331658,20.29848814,1884.1,1884.0,1.946297]
[1743239333366,20.29848814,1884.1,1884.0,5.154097]
[1743239334357,20.29848814,1884.1,1884.0,1.946297]
[1743239334557,20.29848814,1884.1,1884.0,5.154097]
[1743239334758,20.29848814,1884.1,1884.0,5.15415827]
[1743239336857,20.29848814,1884.1,1884.0,5.15411279]
[1743239338561,20.29848814,1884.1,1884.0,1.94631279]
[1743239338759,20.29848814,1884.1,1884.0,5.15411279]
[1743239339461,20.29848814,1884.1,1884.0,0.49301279]
[1743239339860,1.06208,1884.0,1883.9,1.37335756]
[1743239340060,2.47948,1884.0,1883.9,1.86652287]
[1743239340256,2.47948,1884.0,1883.9,0.50112287]
[1743239340560,2.47948,1884.0,1883.9,0.00795756]
[1743239340766,2.47948,1884.0,1883.9,0.501207]
[1743239341267,2.47948,1884.0,1883.9,0.00795756]
[1743239342367,7.1252,1884.0,1883.2,1.70472367]
[1743239342567,23.16993814,1884.1,1883.2,1.70472367]
[1743239342568,1.06247,1883.3,1883.2,1.70472367]
[1743239342868,1.06253,1883.2,1883.1,0.6833]
[1743239343071,4.44453,1883.2,1883.1,0.6833]
[1743239343768,4.44453,1883.2,1883.1,2.0242]
[1743239344368,4.44453,1883.2,1883.1,5.232]
[1743239344865,1.07046756,1883.3,1883.1,5.232]
[1743239345162,0.00795756,1883.3,1883.2,41.86253]
[1743239345671,0.00795756,1883.3,1883.2,48.82161997]
[1743239355976,0.00795756,1883.3,1883.2,49.35281997]
[1743239356175,0.00795756,1883.3,1883.2,58.16881997]
[1743239356376,0.00795756,1883.3,1883.2,57.63761997]
[1743239356576,0.00795756,1883.3,1883.2,58.16881997]
[1743239360676,0.00795756,1883.3,1883.2,59.55391997]
[1743239361778,15.90956814,1883.8,1883.3,2.65615]
[1743239361979,4.75196814,1883.8,1883.7,1.06224]
[1743239362379,4.75196814,1883.8,1883.7,43.98414]
[1743239362573,4.7424,1883.8,1883.7,43.98414]
[1743239363080,4.7424,1883.8,1883.7,42.9219]
[1743239363475,4.7424,1883.8,1883.7,43.98414]
[1743239363685,5.80459,1883.8,1883.7,42.9219]
[1743239364179,4.7424,1883.8,1883.7,43.98414]
[1743239364882,5.80459,1883.8,1883.7,42.9219]
[1743239365779,5.80459,1883.8,1883.7,43.98414]
[1743239366888,5.80459,1883.8,1883.7,42.9219]
[1743239367888,6.50939,1883.8,1883.7,42.9219]
[1743239368086,6.50939,1883.8,1883.7,42.2419]
[1743239368389,6.50939,1883.8,1883.7,43.30414]
[1743239368694,7.18539,1883.8,1883.7,43.30414]
[1743239369089,7.18539,1883.8,1883.7,42.2419]
[1743239370899,7.18539,1883.8,1883.7,40.8]
[1743239371201,1.06236,1883.5,1883.4,3.2078]
[1743239371493,4.44436,1883.5,1883.4,3.2078]
[1743239372094,5.15316,1883.5,1883.4,3.2078]
[1743239372394,5.15316,1883.5,1883.4,44.0078]
[1743239373799,5.87096,1883.5,1883.4,44.0078]
[1743239376398,4.8086,1883.5,1883.4,45.07021]
[1743239376697,5.87096,1883.5,1883.4,45.4328]
[1743239378004,5.87096,1883.5,1883.4,44.0078]
[1743239379098,5.87096,1883.5,1883.4,40.8]
[1743239379704,7.33366,1883.5,1883.4,40.8]
[1743239381702,9.83366,1883.5,1883.0,3.21575756]
[1743239381907,1.06258,1883.1,1883.0,0.00795756]
[1743239382105,4.44558,1883.1,1883.0,0.00795756]
[1743239382704,4.44558,1883.1,1883.0,40.80795756]
[1743239383218,5.83238,1883.1,1883.0,40.80795756]
[1743239384906,5.83238,1883.1,1883.0,42.19945756]
[1743239385097,5.83238,1883.1,1883.0,42.91345756]
[1743239386307,2.44938,1883.1,1883.0,42.91345756]
[1743239386502,5.83238,1883.1,1883.0,42.91345756]
[1743239392812,5.83238,1883.1,1883.0,42.19945756]
[1743239396516,5.83238,1883.1,1883.0,40.80795756]
[1743239397020,8.33238,1883.1,1883.0,40.80795756]
[1743239397615,5.83238,1883.1,1883.0,40.80795756]
[1743239404920,3.384,1883.1,1883.0,41.87057756]
[1743239405121,3.384,1883.1,1883.0,46.46037756]
[1743239405720,36.37348532,1883.3,1883.1,1.06258]
[1743239405917,35.31098532,1883.3,1883.2,5.73163]
[1743239406123,38.69498532,1883.3,1883.2,5.73163]
[1743239406327,38.69498532,1883.3,1883.2,45.4691]
[1743239406528,38.69498532,1883.3,1883.2,46.53163]
[1743239408325,3.384,1883.3,1883.2,46.53163]
[1743239409028,49.066,1883.6,1883.2,46.53163]
[1743239409029,1.06227,1883.7,1883.2,52.29690351]
[1743239409328,3.383,1883.6,1883.5,3.2078]
[1743239409622,3.383,1883.6,1883.5,2.0862]
[1743239410031,3.383,1883.6,1883.5,42.8862]
[1743239410517,4.4453,1883.6,1883.5,42.8862]
[1743239410916,3.383,1883.6,1883.5,43.94856]
[1743239412336,4.4453,1883.6,1883.5,42.8862]
[1743239412522,3.383,1883.6,1883.5,42.8862]
[1743239412923,3.383,1883.6,1883.5,43.94856]
[1743239414322,4.4453,1883.6,1883.5,42.8862]
[1743239414926,4.4453,1883.6,1883.5,42.1642]
[1743239415126,10.1531,1883.6,1883.5,40.8]
[1743239415824,11.5439,1883.6,1883.5,40.8]
[1743239418828,11.5439,1883.6,1883.5,39.65312]
[1743239419029,1.06258,1883.1,1883.0,0.00795756]
[1743239419333,4.44558,1883.1,1883.0,0.00795756]
[1743239419822,4.44558,1883.1,1883.0,41.53415756]
[1743239420538,4.44558,1883.1,1883.0,42.92905756]
[1743239424933,3.383,1883.1,1883.0,42.92905756]
[1743239425136,4.44558,1883.1,1883.0,42.92905756]
[1743239432047,4.44558,1883.1,1883.0,42.20285756]
[1743239433752,4.44558,1883.1,1883.0,40.80795756]
[1743239434853,4.44558,1883.1,1883.0,42.20135756]
[1743239438164,21.05248498,1883.1,1883.0,42.20135756]
[1743239449960,24.26028498,1883.1,1883.0,42.20135756]
[1743239450462,21.05248498,1883.1,1883.0,42.20135756]
[1743239454762,22.46178498,1883.1,1883.0,42.20135756]
[1743239457074,21.05248498,1883.1,1883.0,42.20135756]
[1743239459070,22.49278498,1883.1,1883.0,42.20135756]
[1743239460364,21.05248498,1883.1,1883.0,42.20135756]
[1743239461377,22.49278498,1883.1,1883.0,42.20135756]
[1743239462873,5.88588,1883.1,1883.0,42.20135756]
[1743239463573,4.44558,1883.1,1883.0,42.20135756]
[1743239475184,1.06258,1883.1,1883.0,42.20135756]
[1743239475386,4.44558,1883.1,1883.0,42.20135756]
[1743239478099,25.22789149,1883.1,1883.0,42.20135756]
[1743239480177,28.43569149,1883.1,1883.0,42.20135756]
[1743239480588,29.90359149,1883.1,1883.0,42.20135756]
[1743239486184,26.69579149,1883.1,1883.0,42.20135756]
[1743239486389,29.90359149,1883.1,1883.0,42.20135756]
[1743239487393,25.05269149,1883.1,1883.0,42.20135756]
[1743239487693,28.43569149,1883.1,1883.0,42.20135756]
[1743239487886,25.05269149,1883.1,1883.0,42.20135756]
[1743239488087,28.43569149,1883.1,1883.0,42.20135756]
[1743239491591,25.22789149,1883.1,1883.0,42.20135756]
[1743239491783,28.43569149,1883.1,1883.0,42.20135756]
[1743239499192,25.22789149,1883.1,1883.0,42.20135756]
[1743239499491,28.43569149,1883.1,1883.0,42.20135756]
[1743239500594,29.79839149,1883.1,1883.0,42.20135756]
[1743239502295,29.79839149,1883.1,1883.0,40.80795756]
[1743239502502,1.0627,1882.9,1882.8,1.3727]
[1743239502893,5.86457,1882.9,1882.5,0.6735]
[1743239503197,1.06281,1882.7,1882.6,1.3727]
[1743239503493,1.06281,1882.7,1882.6,42.1727]
[1743239503696,3.25211,1882.7,1882.6,42.1727]
[1743239505089,1.78301,1882.7,1882.6,42.9102]
[1743239506095,1.06281,1882.7,1882.6,42.9102]
[1743239507592,19.85833802,1882.7,1882.6,42.9102]
[1743239510498,22.03053802,1882.7,1882.6,42.9102]
[1743239518604,22.03053802,1882.7,1882.6,42.1727]
[1743239519494,22.03053802,1882.7,1882.6,40.8]
[1743239519889,22.03053802,1882.7,1882.5,0.00795756]
[1743239519890,1.06287,1882.6,1882.5,0.00795756]
[1743239520197,3.21027,1882.6,1882.5,0.00795756]
[1743239520399,5.71027,1882.6,1882.5,0.00795756]
[1743239520998,5.71027,1882.6,1882.5,40.80795756]
[1743239521305,1.06303,1882.3,1882.2,1.427]
[1743239521502,4.44603,1882.3,1882.2,1.427]
[1743239522301,6.57633,1882.3,1882.2,42.227]
[1743239522497,1.06303,1882.3,1882.2,42.227]
[1743239522705,4.44603,1882.3,1882.2,42.227]
[1743239522905,3.383,1882.3,1882.2,42.9029]
[1743239523104,4.44603,1882.3,1882.2,42.9029]
[1743239523611,3.383,1882.3,1882.2,42.9029]
[1743239525104,3.383,1882.3,1882.2,43.96599]
[1743239525607,3.383,1882.3,1882.2,42.9029]
[1743239525807,3.383,1882.3,1882.2,43.96599]
[1743239526812,14.5997171,1882.4,1882.3,1.06303]
[1743239527011,14.5997171,1882.4,1882.3,6.34133]
[1743239527214,14.5997171,1882.4,1882.3,15.76171196]
[1743239527513,14.5997171,1882.4,1882.3,56.56171196]
[1743239528310,1.06288,1882.6,1882.4,1.06298]
[1743239528605,1.06288,1882.6,1882.5,4.5817]
[1743239528813,1.06288,1882.6,1882.5,5.3055]
[1743239529208,1.06288,1882.6,1882.5,46.1055]
[1743239529510,1.06288,1882.6,1882.5,46.60827373]
[1743239530411,37.84109512,1882.7,1882.5,47.67128407]
[1743239530615,37.84109512,1882.7,1882.6,2.61686407]
[1743239531313,37.84109512,1882.7,1882.6,43.41686407]
[1743239532419,37.84109512,1882.7,1882.6,43.41693526]
[1743239532916,19.0455671,1882.7,1882.6,43.41693526]
[1743239534519,19.0455671,1882.7,1882.6,43.41688557]
[1743239538620,19.0455671,1882.7,1882.6,43.41683521]
[1743239544427,20.5179671,1882.7,1882.6,43.41683521]
[1743239544741,20.5179671,1882.7,1882.6,43.41726029]
[1743239546740,20.5179671,1882.7,1882.6,43.41730025]
[1743239547338,19.0455671,1882.7,1882.6,43.41730025]
[1743239547744,20.3817671,1882.7,1882.6,43.41730025]
[1743239548733,20.3817671,1882.7,1882.6,43.41732798]
[1743239549138,19.0455671,1882.7,1882.6,43.41732798]
[1743239549741,20.3817671,1882.7,1882.6,43.41732798]
[1743239550344,22.46744097,1882.7,1882.6,43.41732798]
[1743239550837,22.46744097,1882.7,1882.6,43.41740732]
[1743239551440,22.46744097,1882.7,1882.6,42.68410732]
[1743239552945,22.46744097,1882.7,1882.6,42.68466247]
[1743239554848,22.46744097,1882.7,1882.6,42.68536657]
[1743239556848,22.46744097,1882.7,1882.6,42.68539144]
[1743239559553,20.06839097,1882.7,1882.6,42.68539144]
[1743239559742,20.06839097,1882.7,1882.6,44.42026144]
[1743239559942,21.13120097,1882.7,1882.6,43.35739144]
[1743239560945,21.13120097,1882.7,1882.6,43.35733148]
[1743239561858,20.06839097,1882.7,1882.6,44.42020148]
[1743239562155,19.05766379,1882.7,1882.6,43.35733148]
[1743239563057,19.05766379,1882.7,1882.6,43.35726754]
[1743239563554,17.99485379,1882.7,1882.6,44.42013754]
[1743239564447,19.05766379,1882.7,1882.6,44.42013754]
[1743239564756,17.99485379,1882.7,1882.6,44.42013754]
[1743239564956,17.99485379,1882.7,1882.6,44.42002272]
[1743239566556,17.99485379,1882.7,1882.6,47.62782272]
[1743239566959,17.99485379,1882.7,1882.6,47.62768839]
[1743239568961,17.99485379,1882.7,1882.6,47.62762398]
[1743239569260,14.61285379,1882.7,1882.6,54.47760757]
[1743239571159,14.61285379,1882.7,1882.6,54.47742756]
[1743239573161,14.61285379,1882.7,1882.6,54.47719117]
[1743239574661,15.67566379,1882.7,1882.6,45.89233758]
[1743239574862,3.17021,1882.7,1882.6,45.89233758]
[1743239575077,3.17021,1882.7,1882.6,46.95520758]
[1743239575268,2.1074,1882.7,1882.6,46.95520758]
[1743239576262,18.00281135,1882.8,1882.7,1.06281]
[1743239576453,18.00281135,1882.8,1882.7,4.36804758]
[1743239576874,18.00281135,1882.8,1882.7,45.16804758]
[1743239577063,18.00281135,1882.8,1882.7,45.16768857]
[1743239579069,18.00281135,1882.8,1882.7,45.16767781]
[1743239580067,19.06556135,1882.8,1882.7,43.41426781]
[1743239580276,20.44626135,1882.8,1882.7,43.41426781]
[1743239580568,20.44626135,1882.8,1882.7,42.73346781]
[1743239580963,20.44626135,1882.8,1882.7,43.79627781]
[1743239581668,19.38351135,1882.8,1882.7,43.79627781]
[1743239581869,20.44626135,1882.8,1882.7,42.73346781]
[1743239582473,20.44626135,1882.8,1882.7,43.79637229]
[1743239583473,19.38351135,1882.8,1882.7,43.79637229]
[1743239584767,20.44626135,1882.8,1882.7,43.79637229]
[1743239584970,19.38351135,1882.8,1882.7,43.79637229]
[1743239585976,18.00281135,1882.8,1882.7,43.79637229]
[1743239586472,20.43166135,1882.8,1882.7,43.79652563]
[1743239586673,18.00281135,1882.8,1882.7,43.79652563]
[1743239588268,19.46261135,1882.8,1882.7,43.79652563]
[1743239588469,19.46261135,1882.8,1882.7,43.79662242]
[1743239589076,18.00281135,1882.8,1882.7,43.79662242]
[1743239589776,18.00281135,1882.8,1882.7,43.79665975]
[1743239591675,19.35901135,1882.8,1882.7,43.79665975]
[1743239592669,19.35901135,1882.8,1882.7,43.79678233]
[1743239594175,19.35901135,1882.8,1882.7,47.00458233]
[1743239595975,15.97701135,1882.8,1882.7,47.00458233]
[1743239596573,15.97701135,1882.8,1882.7,43.79678233]
[1743239596774,15.97701135,1882.8,1882.7,47.53582015]
[1743239597082,15.97701135,1882.8,1882.7,47.00462015]
[1743239597281,15.97701135,1882.8,1882.7,45.94181015]